[Event "Titled Tuesday Blitz October 31 Early 2023"]
[White "Fominykh, Maria"]
[Black "Prestia, Paris"]
[WhiteFideId "4142411"]
[BlackFideId "30925959"]
[WhiteElo "2280"]
[BlackElo "2606"]
[Result "0-1"]
[Round "2"]
[TimeControl "180+1"]
[Date "2023.10.31"]
[WhiteClock "0:00:00"]
[BlackClock "0:00:19"]
[Board "104"]

1. d4 {[%clk 0:03:00]}  Nf6 {[%clk 0:02:59]} 2. c4 {[%clk 0:03:01]}  g6 {[%clk 0:02:59]} 3. Nc3 {[%clk 0:03:01]}  Bg7 {[%clk 0:03:00]} 4. e4 {[%clk 0:03:01]}  O-O {[%clk 0:03:00]} 5. Nf3 {[%clk 0:03:01]}  d6 {[%clk 0:03:01]} 6. h3 {[%clk 0:03:02]}  Na6 {[%clk 0:03:00]} 7. Be3 {[%clk 0:03:01]}  c5 {[%clk 0:03:00]} 8. d5 {[%clk 0:03:02]}  Nc7 {[%clk 0:03:01]} 9. Nd2 {[%clk 0:03:02]}  e6 {[%clk 0:03:01]} 10. Bd3 {[%clk 0:03:01]}  exd5 {[%clk 0:03:01]} 11. cxd5 {[%clk 0:03:01]}  Rb8 {[%clk 0:03:01]} 12. a4 {[%clk 0:03:02]}  Re8 {[%clk 0:02:58]} 13. O-O {[%clk 0:03:01]}  b6 {[%clk 0:02:57]} 14. Nb5 {[%clk 0:02:55]}  a6 {[%clk 0:02:55]} 15. Nxc7 {[%clk 0:02:51]}  Qxc7 {[%clk 0:02:56]} 16. Qc2 {[%clk 0:02:44]}  b5 {[%clk 0:02:55]} 17. axb5 {[%clk 0:02:33]}  axb5 {[%clk 0:02:56]} 18. b4 {[%clk 0:01:59]}  c4 {[%clk 0:02:54]} 19. Be2 {[%clk 0:01:59]}  Bd7 {[%clk 0:02:42]} 20. Ra7 {[%clk 0:01:59]}  Rb7 {[%clk 0:02:43]} 21. Rfa1 {[%clk 0:01:47]}  Reb8 {[%clk 0:02:42]} 22. Rxb7 {[%clk 0:01:36]}  Rxb7 {[%clk 0:02:42]} 23. Ra8+ {[%clk 0:01:34]}  Rb8 {[%clk 0:02:42]} 24. Ra7 {[%clk 0:01:32]}  Rb7 {[%clk 0:02:43]} 25. Ra8+ {[%clk 0:01:33]}  Be8 {[%clk 0:02:38]} 26. Bd4 {[%clk 0:01:23]}  Rb8 {[%clk 0:02:38]} 27. Ra7 {[%clk 0:01:19]}  Qd8 {[%clk 0:02:38]} 28. Qc3 {[%clk 0:01:12]}  Rc8 {[%clk 0:01:59]} 29. Bf3 {[%clk 0:01:10]}  Nh5 {[%clk 0:01:54]} 30. Bxh5 {[%clk 0:01:04]}  Bxd4 {[%clk 0:01:54]} 31. Qxd4 {[%clk 0:01:04]}  c3 {[%clk 0:01:55]} 32. Nb3 {[%clk 0:00:55]}  gxh5 {[%clk 0:01:53]} 33. Ra1 {[%clk 0:00:37]}  Rc4 {[%clk 0:01:51]} 34. Qd3 {[%clk 0:00:33]}  Qh4 {[%clk 0:01:40]} 35. Re1 {[%clk 0:00:25]}  f6 {[%clk 0:01:34]} 36. Nd4 {[%clk 0:00:19]}  Bg6 {[%clk 0:01:33]} 37. Nxb5 {[%clk 0:00:19]}  Rxb4 {[%clk 0:01:00]} 38. Nxc3 {[%clk 0:00:19]}  Kg7 {[%clk 0:00:52]} 39. Qd2 {[%clk 0:00:16]}  Rc4 {[%clk 0:00:47]} 40. Re3 {[%clk 0:00:16]}  Qg5 {[%clk 0:00:40]} 41. Qe2 {[%clk 0:00:15]}  Rc5 {[%clk 0:00:36]} 42. Rg3 {[%clk 0:00:15]}  Qc1+ {[%clk 0:00:35]} 43. Nd1 {[%clk 0:00:12]}  Rc2 {[%clk 0:00:35]} 44. Qxh5 {[%clk 0:00:05]}  Rd2 {[%clk 0:00:35]} 45. Qg4 {[%clk 0:00:05]}  Qxd1+ {[%clk 0:00:35]} 46. Qxd1 {[%clk 0:00:05]}  Rxd1+ {[%clk 0:00:36]} 47. Kh2 {[%clk 0:00:05]}  Re1 {[%clk 0:00:35]} 48. f3 {[%clk 0:00:05]}  h5 {[%clk 0:00:33]} 49. h4 {[%clk 0:00:05]}  Kf7 {[%clk 0:00:33]} 50. Rh3 {[%clk 0:00:05]}  f5 {[%clk 0:00:31]} 51. exf5 {[%clk 0:00:04]}  Bxf5 {[%clk 0:00:32]} 52. Rg3 {[%clk 0:00:04]}  Bg6 {[%clk 0:00:24]} 53. Rg5 {[%clk 0:00:04]}  Rd1 {[%clk 0:00:24]} 54. Kg3 {[%clk 0:00:04]}  Kf6 {[%clk 0:00:24]} 55. Kf2 {[%clk 0:00:02]}  Bf7 {[%clk 0:00:25]} 56. Kg3 {[%clk 0:00:01]}  Rxd5 {[%clk 0:00:25]} 57. Rxd5 {[%clk 0:00:01]}  Bxd5 {[%clk 0:00:26]} 58. Kf4 {[%clk 0:00:01]}  Bf7 {[%clk 0:00:20]} 59. g4 {[%clk 0:00:00]}  d5 {[%clk 0:00:19]} 0-1


[Site "https://www.chess.com"]

[Event "Titled Tuesday Blitz October 31 Early 2023"]
[White "Mahdavi, Reza"]
[Black "Hoffmann, Asa"]
[WhiteFideId "12595926"]
[BlackFideId "2001470"]
[WhiteElo "2906"]
[BlackElo "2395"]
[Result "1-0"]
[Round "2"]
[TimeControl "180+1"]
[Date "2023.10.31"]
[WhiteClock "0:02:11"]
[BlackClock "0:01:43"]
[Board "107"]

1. c4 {[%clk 0:02:46]}  Nf6 {[%clk 0:02:59]} 2. Nf3 {[%clk 0:02:45]}  d6 {[%clk 0:02:58]} 3. d4 {[%clk 0:02:41]}  Bf5 {[%clk 0:02:57]} 4. Nc3 {[%clk 0:02:41]}  Nbd7 {[%clk 0:02:57]} 5. g3 {[%clk 0:02:41]}  c6 {[%clk 0:02:55]} 6. Bg2 {[%clk 0:02:42]}  h6 {[%clk 0:02:55]} 7. O-O {[%clk 0:02:43]}  e5 {[%clk 0:02:55]} 8. b3 {[%clk 0:02:41]}  Be7 {[%clk 0:02:53]} 9. Bb2 {[%clk 0:02:41]}  e4 {[%clk 0:02:52]} 10. Nh4 {[%clk 0:02:40]}  Bh7 {[%clk 0:02:52]} 11. Bh1 {[%clk 0:02:38]}  g5 {[%clk 0:02:48]} 12. Ng2 {[%clk 0:02:38]}  d5 {[%clk 0:02:46]} 13. Ne3 {[%clk 0:02:37]}  O-O {[%clk 0:02:38]} 14. cxd5 {[%clk 0:02:37]}  cxd5 {[%clk 0:02:37]} 15. Ncxd5 {[%clk 0:02:38]}  Nxd5 {[%clk 0:02:31]} 16. Nxd5 {[%clk 0:02:39]}  Nf6 {[%clk 0:02:28]} 17. Nxe7+ {[%clk 0:02:36]}  Qxe7 {[%clk 0:02:28]} 18. d5 {[%clk 0:02:37]}  Nd7 {[%clk 0:02:24]} 19. Qd4 {[%clk 0:02:37]}  f6 {[%clk 0:02:20]} 20. Rac1 {[%clk 0:02:38]}  Rac8 {[%clk 0:02:18]} 21. Qxa7 {[%clk 0:02:35]}  Ne5 {[%clk 0:02:08]} 22. Ba3 {[%clk 0:02:24]}  Qd7 {[%clk 0:02:00]} 23. Bxf8 {[%clk 0:02:24]}  Rxf8 {[%clk 0:01:58]} 24. Bg2 {[%clk 0:02:23]}  Qxd5 {[%clk 0:01:54]} 25. Rfd1 {[%clk 0:02:23]}  Qb5 {[%clk 0:01:52]} 26. Rd2 {[%clk 0:02:12]}  e3 {[%clk 0:01:50]} 27. Qxe3 {[%clk 0:02:12]}  Nc6 {[%clk 0:01:46]} 28. Qc5 {[%clk 0:02:11]}  Qa6 {[%clk 0:01:44]} 29. Bd5+ {[%clk 0:02:10]}  Kh8 {[%clk 0:01:43]} 30. Qxf8+ {[%clk 0:02:10]}  Bg8 {[%clk 0:01:43]} 31. Qxg8# {[%clk 0:02:11]} 1-0


[Site "https://www.chess.com"]

[Event "Titled Tuesday Blitz October 31 Early 2023"]
[White "Bashirli, Saadat"]
[Black "Erdogmus, Yagiz Kaan"]
[WhiteFideId "13429990"]
[BlackFideId "44599790"]
[WhiteElo "2394"]
[BlackElo "2900"]
[Result "0-1"]
[Round "2"]
[TimeControl "180+1"]
[Date "2023.10.31"]
[WhiteClock "0:00:00"]
[BlackClock "0:00:12"]
[Board "108"]

1. e4 {[%clk 0:03:00]}  c6 {[%clk 0:02:58]} 2. d4 {[%clk 0:02:56]}  d5 {[%clk 0:02:58]} 3. exd5 {[%clk 0:02:56]}  cxd5 {[%clk 0:02:59]} 4. Bd3 {[%clk 0:02:56]}  Nc6 {[%clk 0:02:56]} 5. c3 {[%clk 0:02:56]}  Qc7 {[%clk 0:02:56]} 6. Ne2 {[%clk 0:02:54]}  Bg4 {[%clk 0:02:56]} 7. f3 {[%clk 0:02:52]}  Bh5 {[%clk 0:02:54]} 8. Bf4 {[%clk 0:02:52]}  Qd7 {[%clk 0:02:51]} 9. Nd2 {[%clk 0:02:51]}  Bg6 {[%clk 0:02:51]} 10. Nb3 {[%clk 0:02:49]}  e6 {[%clk 0:02:50]} 11. Bxg6 {[%clk 0:02:40]}  hxg6 {[%clk 0:02:51]} 12. Qd2 {[%clk 0:02:40]}  Nge7 {[%clk 0:02:50]} 13. Ng3 {[%clk 0:02:39]}  b6 {[%clk 0:02:47]} 14. O-O-O {[%clk 0:02:29]}  a5 {[%clk 0:02:47]} 15. Qe2 {[%clk 0:02:25]}  Nc8 {[%clk 0:02:39]} 16. Rde1 {[%clk 0:02:17]}  Nd6 {[%clk 0:02:36]} 17. Bxd6 {[%clk 0:02:09]}  Bxd6 {[%clk 0:02:37]} 18. Qb5 {[%clk 0:02:05]}  a4 {[%clk 0:02:36]} 19. Nd2 {[%clk 0:02:04]}  O-O {[%clk 0:02:34]} 20. Ne2 {[%clk 0:01:50]}  Rfc8 {[%clk 0:02:32]} 21. h4 {[%clk 0:01:39]}  a3 {[%clk 0:02:24]} 22. b3 {[%clk 0:01:36]}  Ra5 {[%clk 0:02:23]} 23. Qd3 {[%clk 0:01:26]}  Nb4 {[%clk 0:02:21]} 24. Qb1 {[%clk 0:01:21]}  Qb5 {[%clk 0:02:21]} 25. Kd1 {[%clk 0:01:08]}  Nd3 {[%clk 0:02:20]} 26. Ref1 {[%clk 0:01:07]}  Nb2+ {[%clk 0:02:19]} 27. Ke1 {[%clk 0:01:06]}  Rxc3 {[%clk 0:02:00]} 28. Nxc3 {[%clk 0:01:03]}  Bg3+ {[%clk 0:02:00]} 29. Rf2 {[%clk 0:01:01]}  Qb4 {[%clk 0:01:59]} 30. Qc2 {[%clk 0:00:45]}  Qxd4 {[%clk 0:01:48]} 31. Ndb1 {[%clk 0:00:44]}  Bxf2+ {[%clk 0:01:46]} 32. Kf1 {[%clk 0:00:42]}  Bg3 {[%clk 0:01:44]} 33. h5 {[%clk 0:00:38]}  gxh5 {[%clk 0:01:39]} 34. Rxh5 {[%clk 0:00:36]}  g6 {[%clk 0:01:38]} 35. Rh3 {[%clk 0:00:34]}  Qe5 {[%clk 0:01:34]} 36. Ne2 {[%clk 0:00:30]}  Rc5 {[%clk 0:01:25]} 37. Qd2 {[%clk 0:00:28]}  Nd3 {[%clk 0:00:44]} 38. Rxg3 {[%clk 0:00:17]}  Nc1 {[%clk 0:00:38]} 39. Nbc3 {[%clk 0:00:09]}  Nxe2 {[%clk 0:00:32]} 40. Nxe2 {[%clk 0:00:10]}  Qb2 {[%clk 0:00:27]} 41. Ke1 {[%clk 0:00:08]}  Rc2 {[%clk 0:00:26]} 42. Qd1 {[%clk 0:00:07]}  Qxa2 {[%clk 0:00:26]} 43. Rg4 {[%clk 0:00:05]}  Qb2 {[%clk 0:00:20]} 44. Ra4 {[%clk 0:00:03]}  a2 {[%clk 0:00:20]} 45. Ra8+ {[%clk 0:00:03]}  Kg7 {[%clk 0:00:20]} 46. Kf1 {[%clk 0:00:01]}  Qb1 {[%clk 0:00:19]} 47. Ke1 {[%clk 0:00:01]}  Rb2 {[%clk 0:00:19]} 48. Nc3 {[%clk 0:00:01]}  Rxb3 {[%clk 0:00:13]} 49. Ke2 {[%clk 0:00:00]}  Qb2+ {[%clk 0:00:12]} 0-1


[Site "https://www.chess.com"]

[Event "Titled Tuesday Blitz October 31 Early 2023"]
[White "Golizadeh, Asghar"]
[Black "MarijaKuznecova"]
[WhiteFideId "12505269"]
[WhiteElo "2781"]
[BlackElo "2384"]
[Result "1-0"]
[Round "2"]
[TimeControl "180+1"]
[Date "2023.10.31"]
[WhiteClock "0:01:25"]
[BlackClock "0:00:32"]
[Board "112"]

1. e4 {[%clk 0:02:57]}  c5 {[%clk 0:02:55]} 2. Nf3 {[%clk 0:02:57]}  d6 {[%clk 0:02:55]} 3. Bb5+ {[%clk 0:02:57]}  Bd7 {[%clk 0:02:55]} 4. Bxd7+ {[%clk 0:02:56]}  Qxd7 {[%clk 0:02:56]} 5. c4 {[%clk 0:02:56]}  Nf6 {[%clk 0:02:55]} 6. Nc3 {[%clk 0:02:56]}  g6 {[%clk 0:02:55]} 7. d4 {[%clk 0:02:55]}  cxd4 {[%clk 0:02:56]} 8. Nxd4 {[%clk 0:02:56]}  Bg7 {[%clk 0:02:55]} 9. f3 {[%clk 0:02:57]}  O-O {[%clk 0:02:54]} 10. Be3 {[%clk 0:02:57]}  Nc6 {[%clk 0:02:51]} 11. O-O {[%clk 0:02:57]}  Rfc8 {[%clk 0:02:51]} 12. b3 {[%clk 0:02:54]}  a6 {[%clk 0:02:45]} 13. Nde2 {[%clk 0:02:50]}  Ne8 {[%clk 0:02:11]} 14. Rc1 {[%clk 0:02:47]}  b5 {[%clk 0:02:09]} 15. Nd5 {[%clk 0:02:44]}  Qb7 {[%clk 0:01:42]} 16. Nb6 {[%clk 0:02:33]}  bxc4 {[%clk 0:01:01]} 17. Nxc8 {[%clk 0:02:29]}  Rxc8 {[%clk 0:01:00]} 18. Rxc4 {[%clk 0:02:24]}  Nc7 {[%clk 0:00:58]} 19. Qc1 {[%clk 0:02:20]}  Ne6 {[%clk 0:00:56]} 20. Qc2 {[%clk 0:02:06]}  Ned8 {[%clk 0:00:40]} 21. Rc1 {[%clk 0:02:02]}  Nb4 {[%clk 0:00:39]} 22. Rxc8 {[%clk 0:01:32]}  Nxc2 {[%clk 0:00:39]} 23. Rxd8+ {[%clk 0:01:25]}  Bf8 {[%clk 0:00:32]} 24. Rxc2 {[%clk 0:01:25]} 1-0


[Site "https://www.chess.com"]

[Event "Titled Tuesday Blitz October 31 Early 2023"]
[White "Kovalevsky, Stanislav"]
[Black "Tatarinov, Dmitry"]
[WhiteFideId "13508598"]
[BlackFideId "24160067"]
[WhiteElo "2380"]
[BlackElo "2762"]
[Result "0-1"]
[Round "2"]
[TimeControl "180+1"]
[Date "2023.10.31"]
[WhiteClock "0:00:03"]
[BlackClock "0:00:55"]
[Board "114"]

1. c4 {[%clk 0:02:36]}  Nf6 {[%clk 0:02:46]} 2. Nc3 {[%clk 0:02:35]}  g6 {[%clk 0:02:43]} 3. e4 {[%clk 0:02:35]}  Bg7 {[%clk 0:02:42]} 4. e5 {[%clk 0:02:33]}  Ng8 {[%clk 0:02:37]} 5. d4 {[%clk 0:02:33]}  d6 {[%clk 0:02:37]} 6. Bf4 {[%clk 0:02:26]}  dxe5 {[%clk 0:02:35]} 7. dxe5 {[%clk 0:02:27]}  Nd7 {[%clk 0:02:23]} 8. e6 {[%clk 0:02:19]}  fxe6 {[%clk 0:02:23]} 9. Nf3 {[%clk 0:02:19]}  c6 {[%clk 0:02:18]} 10. Ng5 {[%clk 0:02:12]}  Bxc3+ {[%clk 0:02:01]} 11. bxc3 {[%clk 0:02:10]}  e5 {[%clk 0:02:00]} 12. Bg3 {[%clk 0:01:20]}  Qa5 {[%clk 0:01:58]} 13. Qb3 {[%clk 0:00:48]}  Ngf6 {[%clk 0:01:51]} 14. Be2 {[%clk 0:00:12]}  e4 {[%clk 0:01:49]} 15. Ne6 {[%clk 0:00:10]}  Nc5 {[%clk 0:01:48]} 16. Nc7+ {[%clk 0:00:08]}  Kf7 {[%clk 0:01:47]} 17. Qb4 {[%clk 0:00:07]}  Qxb4 {[%clk 0:01:23]} 18. cxb4 {[%clk 0:00:08]}  Na6 {[%clk 0:01:20]} 19. Nxa8 {[%clk 0:00:08]}  Nxb4 {[%clk 0:01:21]} 20. O-O {[%clk 0:00:08]}  Nh5 {[%clk 0:01:17]} 21. c5 {[%clk 0:00:07]}  Nxg3 {[%clk 0:01:17]} 22. hxg3 {[%clk 0:00:07]}  Bf5 {[%clk 0:01:07]} 23. Nc7 {[%clk 0:00:06]}  Rc8 {[%clk 0:01:07]} 24. Bc4+ {[%clk 0:00:06]}  Kf6 {[%clk 0:01:07]} 25. Rfb1 {[%clk 0:00:05]}  Nc2 {[%clk 0:01:06]} 26. Rc1 {[%clk 0:00:03]}  Nxa1 {[%clk 0:01:06]} 27. Na6 {[%clk 0:00:02]}  bxa6 {[%clk 0:01:05]} 28. Rxa1 {[%clk 0:00:02]}  Rb8 {[%clk 0:01:04]} 29. Bxa6 {[%clk 0:00:02]}  Ke5 {[%clk 0:01:04]} 30. f4+ {[%clk 0:00:01]}  Kd4 {[%clk 0:01:03]} 31. Kh2 {[%clk 0:00:01]}  Kxc5 {[%clk 0:01:02]} 32. Rc1+ {[%clk 0:00:01]}  Kd6 {[%clk 0:01:03]} 33. Bc4 {[%clk 0:00:02]}  h5 {[%clk 0:01:01]} 34. Rd1+ {[%clk 0:00:02]}  Kc7 {[%clk 0:01:01]} 35. Bb3 {[%clk 0:00:02]}  Rb5 {[%clk 0:01:00]} 36. Rc1 {[%clk 0:00:03]}  e5 {[%clk 0:00:59]} 37. Kg1 {[%clk 0:00:02]}  exf4 {[%clk 0:00:59]} 38. gxf4 {[%clk 0:00:02]}  Kd6 {[%clk 0:00:59]} 39. Kf2 {[%clk 0:00:03]}  Rc5 {[%clk 0:00:59]} 40. Rd1+ {[%clk 0:00:03]}  Kc7 {[%clk 0:00:59]} 41. Ke3 {[%clk 0:00:03]}  Rc3+ {[%clk 0:00:59]} 42. Kd4 {[%clk 0:00:03]}  Rg3 {[%clk 0:00:58]} 43. Rd2 {[%clk 0:00:03]}  h4 {[%clk 0:00:57]} 44. Ke5 {[%clk 0:00:03]}  e3 {[%clk 0:00:57]} 45. Rb2 {[%clk 0:00:03]}  Bg4 {[%clk 0:00:54]} 46. Bc4 {[%clk 0:00:03]}  e2 {[%clk 0:00:54]} 47. Bxe2 {[%clk 0:00:03]}  Re3+ {[%clk 0:00:54]} 48. Kf6 {[%clk 0:00:03]}  Rxe2 {[%clk 0:00:55]} 49. Rxe2 {[%clk 0:00:02]}  Bxe2 {[%clk 0:00:56]} 50. Kxg6 {[%clk 0:00:02]}  Bf1 {[%clk 0:00:56]} 51. Kg5 {[%clk 0:00:02]}  Bxg2 {[%clk 0:00:57]} 52. Kxh4 {[%clk 0:00:03]}  Kd6 {[%clk 0:00:57]} 53. Kg5 {[%clk 0:00:03]}  c5 {[%clk 0:00:57]} 54. f5 {[%clk 0:00:04]}  c4 {[%clk 0:00:58]} 55. f6 {[%clk 0:00:05]}  c3 {[%clk 0:00:58]} 56. f7 {[%clk 0:00:02]}  Ke7 {[%clk 0:00:58]} 57. Kg6 {[%clk 0:00:03]}  Bd5 {[%clk 0:00:56]} 58. Kf5 {[%clk 0:00:03]}  c2 {[%clk 0:00:55]} 0-1


[Site "https://www.chess.com"]

[Event "Titled Tuesday Blitz October 31 Early 2023"]
[White "Weetik, Vjacheslav"]
[Black "Haitin, Ilja"]
[WhiteFideId "4153472"]
[BlackFideId "4501764"]
[WhiteElo "2750"]
[BlackElo "2376"]
[Result "0-1"]
[Round "2"]
[TimeControl "180+1"]
[Date "2023.10.31"]
[WhiteClock "0:00:03"]
[BlackClock "0:00:07"]
[Board "115"]

1. e4 {[%clk 0:02:59]}  e5 {[%clk 0:02:53]} 2. Nf3 {[%clk 0:02:59]}  Nc6 {[%clk 0:02:51]} 3. Bb5 {[%clk 0:02:58]}  d6 {[%clk 0:02:50]} 4. Nc3 {[%clk 0:02:52]}  Bd7 {[%clk 0:02:45]} 5. d4 {[%clk 0:02:52]}  exd4 {[%clk 0:02:45]} 6. Nxd4 {[%clk 0:02:51]}  g6 {[%clk 0:02:41]} 7. Be3 {[%clk 0:02:31]}  Bg7 {[%clk 0:02:39]} 8. Qd2 {[%clk 0:02:24]}  a6 {[%clk 0:02:29]} 9. Be2 {[%clk 0:02:17]}  Nxd4 {[%clk 0:02:15]} 10. Bxd4 {[%clk 0:02:18]}  Bxd4 {[%clk 0:02:15]} 11. Qxd4 {[%clk 0:02:18]}  Qf6 {[%clk 0:02:16]} 12. Qc4 {[%clk 0:02:10]}  Bc6 {[%clk 0:02:08]} 13. O-O-O {[%clk 0:01:48]}  Ne7 {[%clk 0:02:02]} 14. Kb1 {[%clk 0:01:43]}  O-O-O {[%clk 0:01:50]} 15. f4 {[%clk 0:01:35]}  Qe6 {[%clk 0:01:19]} 16. Qd4 {[%clk 0:01:29]}  Kb8 {[%clk 0:01:00]} 17. g3 {[%clk 0:01:11]}  d5 {[%clk 0:00:48]} 18. Rhe1 {[%clk 0:00:35]}  dxe4 {[%clk 0:00:43]} 19. Qxd8+ {[%clk 0:00:34]}  Rxd8 {[%clk 0:00:44]} 20. Rxd8+ {[%clk 0:00:34]}  Ka7 {[%clk 0:00:45]} 21. Rd4 {[%clk 0:00:19]}  Qh3 {[%clk 0:00:41]} 22. Bc4 {[%clk 0:00:15]}  Qxh2 {[%clk 0:00:38]} 23. Nxe4 {[%clk 0:00:16]}  Nf5 {[%clk 0:00:36]} 24. Rdd1 {[%clk 0:00:16]}  Qg2 {[%clk 0:00:25]} 25. Ng5 {[%clk 0:00:09]}  Qxg3 {[%clk 0:00:22]} 26. Nxf7 {[%clk 0:00:09]}  Ne3 {[%clk 0:00:20]} 27. Rxe3 {[%clk 0:00:04]}  Qxe3 {[%clk 0:00:21]} 28. Ne5 {[%clk 0:00:04]}  Qxf4 {[%clk 0:00:20]} 29. Nxc6+ {[%clk 0:00:05]}  bxc6 {[%clk 0:00:20]} 30. b3 {[%clk 0:00:05]}  h5 {[%clk 0:00:19]} 31. Rd7 {[%clk 0:00:04]}  Kb6 {[%clk 0:00:18]} 32. Rh7 {[%clk 0:00:04]}  Qg3 {[%clk 0:00:12]} 33. a4 {[%clk 0:00:04]}  a5 {[%clk 0:00:12]} 34. Rh8 {[%clk 0:00:05]}  h4 {[%clk 0:00:12]} 35. Rb8+ {[%clk 0:00:05]}  Kc5 {[%clk 0:00:12]} 36. Ra8 {[%clk 0:00:05]}  Kb4 {[%clk 0:00:12]} 37. Kb2 {[%clk 0:00:05]}  Qe5+ {[%clk 0:00:10]} 38. Kb1 {[%clk 0:00:05]}  Ka3 {[%clk 0:00:08]} 39. Kc1 {[%clk 0:00:03]}  Qe1# {[%clk 0:00:07]} 0-1


[Site "https://www.chess.com"]

[Event "Titled Tuesday Blitz October 31 Early 2023"]
[White "Gorovets, Andrey"]
[Black "Goswami, Vedant"]
[WhiteFideId "13504037"]
[BlackFideId "5003725"]
[WhiteElo "2747"]
[BlackElo "2370"]
[Result "1-0"]
[Round "2"]
[TimeControl "180+1"]
[Date "2023.10.31"]
[WhiteClock "0:00:35"]
[BlackClock "0:00:02"]
[Board "116"]

1. Nf3 {[%clk 0:02:57]}  Nc6 {[%clk 0:02:57]} 2. d4 {[%clk 0:02:50]}  d5 {[%clk 0:02:56]} 3. g3 {[%clk 0:02:50]}  Bg4 {[%clk 0:02:55]} 4. Bg2 {[%clk 0:02:48]}  Qd7 {[%clk 0:02:55]} 5. c4 {[%clk 0:02:13]}  e6 {[%clk 0:02:48]} 6. Nc3 {[%clk 0:02:12]}  Nf6 {[%clk 0:02:47]} 7. Ne5 {[%clk 0:02:07]}  Nxe5 {[%clk 0:02:07]} 8. dxe5 {[%clk 0:02:08]}  d4 {[%clk 0:01:59]} 9. Nb5 {[%clk 0:02:00]}  Bb4+ {[%clk 0:01:39]} 10. Bd2 {[%clk 0:01:58]}  Bxd2+ {[%clk 0:00:57]} 11. Qxd2 {[%clk 0:01:59]}  Ng8 {[%clk 0:00:55]} 12. h3 {[%clk 0:01:49]}  Bf5 {[%clk 0:00:51]} 13. g4 {[%clk 0:01:47]}  Bg6 {[%clk 0:00:49]} 14. Bxb7 {[%clk 0:01:16]}  Rb8 {[%clk 0:00:47]} 15. Bg2 {[%clk 0:01:16]}  d3 {[%clk 0:00:34]} 16. Rd1 {[%clk 0:01:09]}  Ne7 {[%clk 0:00:28]} 17. exd3 {[%clk 0:01:09]}  h5 {[%clk 0:00:19]} 18. d4 {[%clk 0:01:04]}  a6 {[%clk 0:00:14]} 19. Nc3 {[%clk 0:01:02]}  Nc6 {[%clk 0:00:09]} 20. g5 {[%clk 0:00:55]}  Nb4 {[%clk 0:00:09]} 21. O-O {[%clk 0:00:44]}  Nd3 {[%clk 0:00:06]} 22. Ne4 {[%clk 0:00:39]}  Nxb2 {[%clk 0:00:04]} 23. Rb1 {[%clk 0:00:36]}  Bxe4 {[%clk 0:00:04]} 24. Bxe4 {[%clk 0:00:35]}  O-O {[%clk 0:00:02]} 25. Rxb2 {[%clk 0:00:35]} 1-0


[Site "https://www.chess.com"]

[Event "Titled Tuesday Blitz October 31 Early 2023"]
[White "Sukandar, Irine Kharisma"]
[Black "mind1mover"]
[WhiteFideId "7101937"]
[WhiteElo "2369"]
[BlackElo "2744"]
[Result "0-1"]
[Round "2"]
[TimeControl "180+1"]
[Date "2023.10.31"]
[WhiteClock "0:00:00"]
[BlackClock "0:00:37"]
[Board "117"]

1. d4 {[%clk 0:02:22]}  d6 {[%clk 0:02:57]} 2. e4 {[%clk 0:02:21]}  Nf6 {[%clk 0:02:57]} 3. Nf3 {[%clk 0:02:22]}  Nxe4 {[%clk 0:02:57]} 4. Bd3 {[%clk 0:02:22]}  Nf6 {[%clk 0:02:56]} 5. O-O {[%clk 0:02:22]}  g6 {[%clk 0:02:57]} 6. c4 {[%clk 0:02:22]}  Bg7 {[%clk 0:02:57]} 7. Nc3 {[%clk 0:02:22]}  O-O {[%clk 0:02:56]} 8. Re1 {[%clk 0:02:22]}  Bg4 {[%clk 0:02:49]} 9. h3 {[%clk 0:02:21]}  Bxf3 {[%clk 0:02:49]} 10. Qxf3 {[%clk 0:02:22]}  Nc6 {[%clk 0:02:49]} 11. Be3 {[%clk 0:02:16]}  Nd7 {[%clk 0:02:42]} 12. Rad1 {[%clk 0:02:07]}  Nxd4 {[%clk 0:02:31]} 13. Qxb7 {[%clk 0:02:04]}  Nc5 {[%clk 0:02:24]} 14. Qd5 {[%clk 0:01:33]}  e6 {[%clk 0:02:24]} 15. Qg5 {[%clk 0:01:33]}  Qxg5 {[%clk 0:02:24]} 16. Bxg5 {[%clk 0:01:33]}  Nxd3 {[%clk 0:02:25]} 17. Rxd3 {[%clk 0:01:33]}  a6 {[%clk 0:02:15]} 18. Red1 {[%clk 0:01:32]}  Nc6 {[%clk 0:02:13]} 19. Na4 {[%clk 0:01:16]}  Ne5 {[%clk 0:02:04]} 20. Rc3 {[%clk 0:01:13]}  Rfb8 {[%clk 0:02:01]} 21. b3 {[%clk 0:01:12]}  Rb4 {[%clk 0:01:58]} 22. Rc2 {[%clk 0:01:12]}  Nc6 {[%clk 0:01:52]} 23. Bd2 {[%clk 0:01:11]}  Rbb8 {[%clk 0:01:52]} 24. Be3 {[%clk 0:01:09]}  f5 {[%clk 0:01:39]} 25. Bf4 {[%clk 0:01:08]}  Nd4 {[%clk 0:01:37]} 26. Rcd2 {[%clk 0:01:07]}  e5 {[%clk 0:01:38]} 27. Be3 {[%clk 0:01:07]}  Nc6 {[%clk 0:01:33]} 28. f3 {[%clk 0:01:07]}  Ne7 {[%clk 0:01:25]} 29. Bf2 {[%clk 0:01:05]}  Bh6 {[%clk 0:01:25]} 30. Re2 {[%clk 0:01:05]}  Nc6 {[%clk 0:01:13]} 31. c5 {[%clk 0:01:03]}  Rd8 {[%clk 0:01:06]} 32. cxd6 {[%clk 0:00:55]}  Rxd6 {[%clk 0:01:06]} 33. Rde1 {[%clk 0:00:49]}  Rad8 {[%clk 0:01:06]} 34. Nc5 {[%clk 0:00:47]}  Rd1 {[%clk 0:00:59]} 35. Nxa6 {[%clk 0:00:47]}  Rxe1+ {[%clk 0:00:59]} 36. Bxe1 {[%clk 0:00:43]}  Rd1 {[%clk 0:01:00]} 37. Nc5 {[%clk 0:00:38]}  Nd4 {[%clk 0:00:51]} 38. Rxe5 {[%clk 0:00:37]}  Bf4 {[%clk 0:00:49]} 39. Re8+ {[%clk 0:00:07]}  Kf7 {[%clk 0:00:49]} 40. Rd8 {[%clk 0:00:05]}  Rxe1+ {[%clk 0:00:35]} 41. Kf2 {[%clk 0:00:02]}  Re2+ {[%clk 0:00:36]} 42. Kf1 {[%clk 0:00:00]}  Be3 {[%clk 0:00:37]} 0-1


[Site "https://www.chess.com"]